Cogmind - Beta 17 @@@ ROGUE MODE // 2026.06.26 @ 17:44:48 Player: beans Result: Destroyed by H-66 Slayer with Gauss Rifle Performance ------------- Evolutions (3) 1500 Regions Visited (13) 2600 Robots Destroyed (127) 635 Value Destroyed (3211) 3211 Prototype IDs (238) 4760 Alien Tech Used (0) 0 Bonus (3776) 3776 TOTAL SCORE: 16482 Bonus ------- High Alert Combat Kills 24 Follower Combat Kills 194 Aligned with FarCom 300 Met Data Miner 300 Used Data Conduit 3000 Friendly Fire -42 Cogmind --------- Core Integrity 0/700 Matter 286/300 Energy 23/100 System Corruption 0% Temperature Cool (0) Movement Flying (40) Location -6/Proximity Caves Parts ------- > --- POWER (1) -------- (None) > --- PROPULSION (3) --- Nuclear Pulse Thruster > --- UTILITY (6) ------ Scrap Suit Enhanced Optical Array Advanced Targeting Computer Target Analyzer Core Analyzer > --- WEAPON (3) ------- (None) > --- INVENTORY (5) ---- Experimental Sensor Array Supersonic Drone Bay (1/1) Molecular Deconstructor Peak State ------------ > --- POWER ------------ Light Fission Core > --- PROPULSION ------- Cooled VTOL Module Nuclear Pulse Thruster Nuclear Pulse Thruster > --- UTILITY ---------- Scrap Suit Enhanced Optical Array Advanced Targeting Computer Target Analyzer Core Analyzer > --- WEAPON ----------- Master Tearclaws > --- INVENTORY -------- Light Angular Momentum Engine Experimental Sensor Array Supersonic Drone Bay Plasma Cutter [Rating: 59] Favorites ----------- Power Light Nuclear Core Engine Heavy Ion Engine Power Core Light Nuclear Core Propulsion Light Treads Treads Light Treads Leg Carbon-fiber Leg Flight Unit VTOL Module Utility Improved Heat Sink Device Improved Heat Sink Processor Targeting Computer Protection Reflective Plating Weapon High-powered Shotgun Energy Gun Particle Gun Ballistic Gun High-powered Shotgun Launcher Heavy Rocket Launcher Special Weapon Plasma Cutter Slashing Weapon Makeshift Sword Build | -11 -10 -10 -9 -9 -9 -8 -8 -8 -7 -7 -7 -7 -6 ------- Run | Yrd Mat Min Mat Min Exi Min Mat Sto Fac Low Low Dat Pro Slots Evolved 6 | . . . 2 . . . 2 . 2 . . . . Power . | . . . . . . . . . . . . . . Propulsion 1 | . . . . . . . . . 1 . . . . Utility 4 | . . . 1 . . . 2 . 1 . . . . Weapon 1 | . . . 1 . . . . . . . . . . Parts Attached 78 | 4 1 4 3 2 3 4 11 12 24 . 8 1 1 Power 10 | 1 . 1 . . . 1 1 1 3 . 2 . . Engine 4 | 1 . . . . . 1 1 1 . . . . . Core 6 | . . 1 . . . . . . 3 . 2 . . Reactor . | . . . . . . . . . . . . . . Propulsion 20 | 2 . . 1 . 1 . 4 1 9 . 2 . . Treads 5 | 2 . . 1 . 1 . 1 . . . . . . Leg 5 | . . . . . . . 3 1 1 . . . . Wheel . | . . . . . . . . . . . . . . Hover . | . . . . . . . . . . . . . . Flight 10 | . . . . . . . . . 8 . 2 . . Utility 21 | . 1 1 1 1 2 . 4 2 6 . 3 . . Device 12 | . . 1 1 1 2 . 3 1 1 . 2 . . Storage . | . . . . . . . . . . . . . . Processor 6 | . 1 . . . . . . . 4 . 1 . . Hackware . | . . . . . . . . . . . . . . Protection 3 | . . . . . . . 1 1 1 . . . . Artifact . | . . . . . . . . . . . . . . Weapon 27 | 1 . 2 1 1 . 3 2 8 6 . 1 1 1 Energy Gun 3 | . . . . . . . . 3 . . . . . Energy Cannon . | . . . . . . . . . . . . . . Ballistic Gun 17 | 1 . 2 1 . . 3 2 4 3 . 1 . . Ballistic Cannon . | . . . . . . . . . . . . . . Launcher 2 | . . . . . . . . . 2 . . . . Special Weapon 2 | . . . . . . . . 1 . . . . 1 Impact Weapon . | . . . . . . . . . . . . . . Slashing Weapon 3 | . . . . 1 . . . . 1 . . 1 . Piercing Weapon . | . . . . . . . . . . . . . . Special Melee Weapon . | . . . . . . . . . . . . . . Unidentified Prototypes 8 | . . . 1 . . . 1 2 3 . . . 1 Parts Lost 41 | . . 3 3 2 . 3 4 8 9 . 6 2 1 Power 8 | . . 1 1 . . . 1 1 1 . 2 1 . Propulsion 11 | . . 1 1 1 . . . 1 3 . 2 1 1 Utility 10 | . . . . 1 . . 1 3 3 . 2 . . Weapon 12 | . . 1 1 . . 3 2 3 2 . . . . Highest Loss Streak 4 | . . 2 1 1 . 1 1 4 3 . 3 2 1 To Critical Strikes 1 | . . . . 1 . . . . . . . . . Average Backups 3 | . . 4 5 4 3 4 4 4 4 4 2 3 3 Power . | . . . . . . . . . . . . . . Propulsion . | . . 1 2 1 . . . . . . . . . Utility 2 | . . 2 2 2 2 3 3 3 3 3 1 2 2 Weapon . | . . . . . . . . . . . . . . Tool/Special . | . . . . . . . . . . . . . . Unused Backups 4 | . . . 1 2 . . . . . . . 1 . Power 1 | . . . . . . . . . . . . 1 . Propulsion 1 | . . . . 1 . . . . . . . . . Utility 2 | . . . 1 1 . . . . . . . . . Weapon . | . . . . . . . . . . . . . . Tool/Special . | . . . . . . . . . . . . . . Average Slot Usage (%) 74 | . 66 77 71 60 63 80 76 88 84 76 60 69 57 Engine 2 | . 14 . . . . 5 4 6 2 . . . . Core 2 | . . 5 3 . . . . . 3 7 3 7 . Treads 7 | . 28 21 17 7 2 11 6 . . . . . . Leg 4 | . . . . . . . 9 17 9 . . . . Flight 4 | . . . . . . . . . 13 23 18 23 14 Device 15 | . . 12 21 16 16 22 17 25 12 7 3 7 7 Processor 15 | . 9 14 11 11 11 11 9 9 22 30 28 30 30 Protection 1 | . . . . . . . 3 4 3 . . . . Ballistic Gun 17 | . 14 21 19 22 22 22 26 18 14 . . . . Slashing Weapon 2 | . . . . 3 11 8 . . . 7 4 . . Peak Build Rating 59 | 4 5 12 17 16 27 31 41 42 50 45 49 59 54 Average Rating 26 | 2 4 10 13 14 19 28 29 36 41 45 33 46 47 On Entrance 25 | . 4 5 12 14 15 27 27 41 35 45 45 46 36 Avg Prop Armor Cover (%) 6 | . . . . . . . 6 . . . . . . Naked Turns . | . . . . . . . . . . . . . . Heaviest Build 26 | 5 5 9 14 9 10 16 25 26 25 11 16 11 10 Greatest Support 45 | 40 40 40 40 20 20 20 40 30 45 16 17 19 12 Greatest Overweight (x) 5 | . . . . 2 3 . . . 5 . . . 1 Average Overweight (x) . | . . . . . 1 . . . . . . . . Largest Inventory Capacity 5 | 5 5 5 5 5 5 5 5 5 5 5 5 5 5 Average Capacity 5 | 5 5 5 5 5 5 5 5 5 5 5 5 5 5 Most Carried 5 | 4 1 5 5 5 5 5 5 5 5 5 5 5 5 Average Carried 4 | . . 4 4 4 4 5 4 4 5 5 3 4 4 Final Capacity 5 | 5 5 5 5 5 5 5 5 5 5 5 5 5 5 Final Carried 5 | . . 5 5 5 5 5 5 5 5 5 5 5 4 Scrap Suit Usage (%) 3 | . . . . . . . . . . . 14 100 100 Class Distribution -------------------- 47% | Mutant 15% | Scavenger-Gunner 12% | Sprinter 9% | Scavenger-Sprinter 8% | Scavenger-Mutant 4% | Scavenger-Skirmisher Dominant Class ---------------- Mutant | -10/Materials Mutant | -10/Mines Mutant | -9/Materials Mutant | -9/Mines Mutant | -9/Exiles Mutant | -8/Mines Scavenger-Skirmisher | -8/Materials Scavenger-Gunner | -8/Storage Scavenger-Sprinter | -7/Factory Sprinter | -7/Lower Caves Sprinter | -7/Lower Caves Scavenger-Sprinter | -7/Data Miner Scavenger-Mutant | -6/Proximity Caves Resources | -11 -10 -10 -9 -9 -9 -8 -8 -8 -7 -7 -7 -7 -6 ----------- Run | Yrd Mat Min Mat Min Exi Min Mat Sto Fac Low Low Dat Pro Matter Collected 3210 | 224 . 272 251 177 . 191 538 752 573 89 102 . 41 Remotely . | . . . . . . . . . . . . . . Salvage Created 4826 | . . 387 372 152 . 166 1152 1360 1168 . 69 . . Parts 288 | . . 32 22 14 . 26 48 65 80 . 1 . . Haulers Intercepted 6 | . . . 1 . . . . 3 2 . . . . Recyclers Shooed 3 | . . . . . . . 1 1 1 . . . . Parts Field Recycled . | . . . . . . . . . . . . . . Retrieved Matter . | . . . . . . . . . . . . . . Parts Self-Destructed . | . . . . . . . . . . . . . . Prevented . | . . . . . . . . . . . . . . Parts Restored . | . . . . . . . . . . . . . . Kills | -11 -10 -10 -9 -9 -9 -8 -8 -8 -7 -7 -7 -7 -6 ------- Run | Yrd Mat Min Mat Min Exi Min Mat Sto Fac Low Low Dat Pro Combat Hostiles Destroyed 79 | . . 11 5 6 . 5 18 16 18 . . . . Guns 76 | . . 11 5 6 . 5 18 16 15 . . . . AOE 3 | . . . . . . . . . 3 . . . . Classes Destroyed 12 | . . 3 4 1 . 1 2 . 1 . . . . Worker 20 | . . 3 1 2 . 2 2 2 8 . . . . Builder 3 | . . . 1 . . . 2 . . . . . . Tunneler 7 | . . . . . . 3 1 . 3 . . . . Hauler 6 | . . . 1 . . . . 3 2 . . . . Recycler 10 | . . . 1 . . . 2 4 3 . . . . Watcher 2 | . . . . . . . 1 1 . . . . . Swarmer 28 | . . 5 . 4 . 5 3 . 11 . . . . Grunt 34 | . . 6 4 1 . . 11 8 4 . . . . Brawler 1 | . . . . 1 . . . . . . . . . Sentry 13 | . . . 1 . . . 2 8 2 . . . . Hunter 2 | . . . . . . . 2 . . . . . . Programmer 1 | . . . . . . . . . 1 . . . . Best Kill Streak 8 | . . 3 2 4 . 4 6 8 7 . . . . Combat Bots Only 6 | . . 3 2 4 . 3 6 3 4 . . . . Max Kills in Single Turn 5 | . . 1 1 2 . 1 2 1 5 . . . . Gunslinging 1 | . . . . 1 . . 1 . 1 . . . . Exploded 3 | . . . . . . . . . 3 . . . . Melee . | . . . . . . . . . . . . . . Uniques/NPCs Destroyed . | . . . . . . . . . . . . . . Combat | -11 -10 -10 -9 -9 -9 -8 -8 -8 -7 -7 -7 -7 -6 -------- Run | Yrd Mat Min Mat Min Exi Min Mat Sto Fac Low Low Dat Pro Hostile Shots Fired 603 | . . 70 12 23 . 43 75 91 179 9 65 9 27 Missed 210 | . . 20 5 5 . 11 15 32 67 7 32 3 13 Hits 393 | . . 50 7 18 . 32 60 59 112 2 33 6 14 Melee 5 | . . . . 3 . . . . . . 2 . . Projectile 388 | . . 50 7 15 . 32 60 59 112 2 31 6 14 Critical Strikes 14 | . . 1 . 1 . . 4 6 2 . . . . Damage Taken 5395 | . . 589 130 196 . 316 872 846 1391 11 518 283 243 Core 1260 | . . 117 . 62 . 67 169 138 432 5 151 85 34 Absorbed by Shields . | . . . . . . . . . . . . . . Ignored by Resistances 78 | . . . . . . . 20 58 . . . . . Core Remaining (%) 66 | 100 . 53 . . . 67 . 44 . . . . . Volleys Fired 327 | . 1 38 32 20 . 19 61 82 72 . . . 2 Largest 3 | . 1 2 2 2 . 3 3 3 3 . . . 1 Hottest 149 | . 20 45 48 48 . 68 76 149 71 . . . . Shots Fired 690 | . 1 58 52 40 2 24 172 206 133 . . . 2 Gun 688 | . 1 58 52 40 2 24 172 206 133 . . . . Cannon . | . . . . . . . . . . . . . . Launcher . | . . . . . . . . . . . . . . Special 2 | . . . . . . . . . . . . . 2 Kinetic 669 | . 1 58 52 40 2 24 172 187 133 . . . . Thermal 19 | . . . . . . . . 19 . . . . . Explosive . | . . . . . . . . . . . . . . Electromagnetic . | . . . . . . . . . . . . . . Robot Hit Streak 25 | . . 7 8 6 1 8 25 11 13 . . . 2 Robot Miss Streak 7 | . . 4 4 4 1 7 4 3 4 . . . . Penetration Max 1 | . . . . . . 1 1 1 . . . . . Secondary Targets 13 | . . 1 . 1 . 1 8 . 2 . . . . Max Gunslinging Chain 1 | . . 1 . 1 . 1 1 . 1 . . . . Shots Hit Robots 451 | . . 41 35 27 2 14 127 122 80 . 1 1 1 Core Hits 209 | . . 18 16 11 . 10 53 45 55 . 1 . . Critical Kills 2 | . . 1 . . . . 1 . . . . . . Critical Parts Destroyed 2 | . . . . . . . 1 . 1 . . . . Critical Strikes 4 | . . 1 . . . . 2 . 1 . . . . Destroy 4 | . . 1 . . . . 2 . 1 . . . . Melee Attacks 13 | . . . . . . 6 . . 1 . 5 1 . Impact . | . . . . . . . . . . . . . . Slashing 13 | . . . . . . 6 . . 1 . 5 1 . Piercing . | . . . . . . . . . . . . . . Sneak Attacks 3 | . . . . . . 2 . . . . . 1 . Combat Hostiles . | . . . . . . . . . . . . . . Follow-up Attacks . | . . . . . . . . . . . . . . Damage Inflicted 8485 | . . 598 705 471 27 393 2106 2154 1929 . 102 . . Guns 7726 | . . 598 705 471 27 208 2106 2151 1460 . . . . Cannons . | . . . . . . . . . . . . . . Explosions 469 | . . . . . . . . . 469 . . . . Melee 287 | . . . . . . 185 . . . . 102 . . Ramming 3 | . . . . . . . . 3 . . . . . Kinetic 7682 | . . 598 705 471 27 208 2106 2107 1460 . . . . Thermal 44 | . . . . . . . . 44 . . . . . Explosive 469 | . . . . . . . . . 469 . . . . Electromagnetic . | . . . . . . . . . . . . . . Impact . | . . . . . . . . . . . . . . Slashing 287 | . . . . . . 185 . . . . 102 . . Piercing . | . . . . . . . . . . . . . . Highest Corruption 4 | . 3 3 . 4 4 4 . . . . . . . Average Corruption 3 | . 2 3 . 4 4 4 . . . . . . . Corruption Purged . | . . . . . . . . . . . . . . Corruption Blocked . | . . . . . . . . . . . . . . Effects 73 | . 3 26 . 8 20 16 . . . . . . . Message Errors 22 | . . 7 . 2 10 3 . . . . . . . Matter Fused 18 | . 1 6 . 2 3 6 . . . . . . . Heat Flow Errors 5 | . . 3 . . . 2 . . . . . . . Energy Discharges 10 | . 2 3 . 2 2 1 . . . . . . . Data Loss (minor) 11 | . . 2 . 2 3 4 . . . . . . . Data Loss (major) 3 | . . 3 . . . . . . . . . . . Misfires 3 | . . 1 . . 2 . . . . . . . . Weapon Failures 1 | . . 1 . . . . . . . . . . . Overload Shots . | . . . . . . . . . . . . . . Overflow Damage 108 | . . . . . . 31 . . 77 . . . . Projectiles . | . . . . . . . . . . . . . . Explosions 77 | . . . . . . . . . 77 . . . . Melee 31 | . . . . . . 31 . . . . . . . Knockbacks . | . . . . . . . . . . . . . . Impact . | . . . . . . . . . . . . . . Kinetic . | . . . . . . . . . . . . . . Secondary . | . . . . . . . . . . . . . . Self-Inflicted Damage . | . . . . . . . . . . . . . . Shots . | . . . . . . . . . . . . . . Rammed . | . . . . . . . . . . . . . . Targets Rammed 1 | . . . . . . . . 1 . . . . . Kicked 1 | . . . . . . . . 1 . . . . . Crushed . | . . . . . . . . . . . . . . Highest Temperature 265 | . . 265 . . . 221 86 23 19 . 7 . . Average Temperature 34 | . . 74 . . . 97 29 9 6 . 7 . . Received Heat Transfer 1581 | . . 207 63 15 . . 423 522 213 . 108 . 30 Siege Activations . | . . . . . . . . . . . . . . Martial Activations . | . . . . . . . . . . . . . . Shielding Activations . | . . . . . . . . . . . . . . Robots Disrupted . | . . . . . . . . . . . . . . Combat Hostiles . | . . . . . . . . . . . . . . Robots Corrupted . | . . . . . . . . . . . . . . Combat Hostiles . | . . . . . . . . . . . . . . Parts Fried . | . . . . . . . . . . . . . . Impact Corruptions . | . . . . . . . . . . . . . . Robots Melted . | . . . . . . . . . . . . . . Combat Hostiles . | . . . . . . . . . . . . . . Parts Melted 1 | . . . . . . . 1 . . . . . . Heat Transferred 111 | . . . . . . . . 111 . . . . . Parts Sabotaged . | . . . . . . . . . . . . . . Parts Stolen 2 | . . . . . . . . . . . 2 . . Parts Stripped . | . . . . . . . . . . . . . . Power Chain Reactions . | . . . . . . . . . . . . . . Alert | -11 -10 -10 -9 -9 -9 -8 -8 -8 -7 -7 -7 -7 -6 ------- Run | Yrd Mat Min Mat Min Exi Min Mat Sto Fac Low Low Dat Pro Maximum Alert Level 3 | . . . . . . . 1 1 3 . . . . Low Security (%) 77 | 100 100 100 100 100 . 100 49 29 59 . . . . Level 1 21 | . . . . . . . 50 70 33 . . . . Level 2 1 | . . . . . . . . . 4 . . . . Level 3 . | . . . . . . . . . 2 . . . . Level 4 . | . . . . . . . . . . . . . . Level 5 . | . . . . . . . . . . . . . . High Security . | . . . . . . . . . . . . . . Max Security . | . . . . . . . . . . . . . . Peak Influence 707 | . . 105 68 87 . 68 341 277 707 . . . . Initial 143 | . . . 8 . . . 18 143 101 . . . . Average 93 | . . 19 12 20 . 9 164 216 184 . . . . Influence Increases 3893 | . . 302 193 237 . 173 577 571 1135 . 675 . 30 Destroy 0b10 Robot/C 1700 | . . 220 100 180 . 120 400 320 360 . . . . Destroy 0b10 Robot/NC 265 | . . 15 45 10 . 25 40 50 80 . . . . Destroy Leader 424 | . . 50 40 30 . 20 102 108 74 . . . . Allied During Kill 53 | . . 2 8 17 . 8 18 . . . . . . Trap Triggered on 0b10 20 | . . . . . . . . . 20 . . . . Disable Machine 300 | . . . . . . . 15 90 195 . . . . Destroy Structure 36 | . . . . . . . 2 3 31 . . . . Partial Spotted 45 | . . 15 . . . . . . 30 . . . . Lose Combat Pursuer 1050 | . . . . . . . . . 345 . 675 . 30 Influence Decreases 3883 | . . 280 215 237 . 124 285 688 664 318 494 558 20 Entered New Map 1254 | . . . 14 . . . 31 198 123 258 72 558 . Time Decay 2269 | . . 260 181 227 . 114 194 410 451 60 362 . 10 Lost Part 340 | . . 20 20 10 . 10 40 80 90 . 60 . 10 Lost Ally 20 | . . . . . . . 20 . . . . . . Squads Dispatched 15 | . . 1 . . . . 3 2 8 . 1 . . Investigation 2 | . . . . . . . 1 . 1 . . . . Extermination 5 | . . . . . . . . . 5 . . . . Reinforcement 4 | . . . . . . . 2 1 1 . . . . Assault 3 | . . 1 . . . . . . 1 . 1 . . Garrison 1 | . . . . . . . . 1 . . . . . Intercept . | . . . . . . . . . . . . . . Searches Triggered . | . . . . . . . . . . . . . . Construction Impeded 2 | . . . . . . . 1 1 . . . . . Haulers Reinforced . | . . . . . . . . . . . . . . Active Scanning Responses . | . . . . . . . . . . . . . . Cargo Convoy Interrupts . | . . . . . . . . . . . . . . Stealth | -11 -10 -10 -9 -9 -9 -8 -8 -8 -7 -7 -7 -7 -6 --------- Run | Yrd Mat Min Mat Min Exi Min Mat Sto Fac Low Low Dat Pro Distress Signals 4 | . . . 1 . . . . 1 2 . . . . Communications Jammed . | . . . . . . . . . . . . . . Distress Signals . | . . . . . . . . . . . . . . Times Spotted 207 | . 2 12 12 8 . 7 27 18 55 1 54 5 6 Peak Tracking Total 9 | . 1 3 3 4 . 3 5 4 7 1 9 4 6 Tactical Retreats 32 | . . . . . . . . . 14 . 17 . 1 Traps | -11 -10 -10 -9 -9 -9 -8 -8 -8 -7 -7 -7 -7 -6 ------- Run | Yrd Mat Min Mat Min Exi Min Mat Sto Fac Low Low Dat Pro Traps Triggered 6 | . 2 1 1 . . . . . 2 . . . . Indirectly . | . . . . . . . . . . . . . . Trap Hack Attempts . | . . . . . . . . . . . . . . Triggered . | . . . . . . . . . . . . . . Disarmed . | . . . . . . . . . . . . . . Reprogrammed . | . . . . . . . . . . . . . . Reused 2 | . . . . . . . . . 2 . . . . Traps Reconfigurated 18 | . . . . . . . 2 1 15 . . . . Traps Extracted . | . . . . . . . . . . . . . . Installed . | . . . . . . . . . . . . . . Triggered 2 | . . . . . . . . . 2 . . . . Machines | -11 -10 -10 -9 -9 -9 -8 -8 -8 -7 -7 -7 -7 -6 ---------- Run | Yrd Mat Min Mat Min Exi Min Mat Sto Fac Low Low Dat Pro Machines Disabled 21 | . . . . . . . 1 6 13 . . . 1 Max in Single Turn 6 | . . . . . . . 1 1 6 . . . 1 Machines Repaired . | . . . . . . . . . . . . . . Machines Dismantled 4 | . . . . . . . . 3 . . . . 1 Machines Sabotaged . | . . . . . . . . . . . . . . Overloaded Fab Kills . | . . . . . . . . . . . . . . Hacking | -11 -10 -10 -9 -9 -9 -8 -8 -8 -7 -7 -7 -7 -6 --------- Run | Yrd Mat Min Mat Min Exi Min Mat Sto Fac Low Low Dat Pro Machines Accessed 5 | . . 1 . 1 2 . . . 1 . . . . Terminals 2 | . . . . 1 . . . . 1 . . . . Fabricators . | . . . . . . . . . . . . . . Repair Stations . | . . . . . . . . . . . . . . Recycling Units . | . . . . . . . . . . . . . . Scanalyzers . | . . . . . . . . . . . . . . Garrison Access . | . . . . . . . . . . . . . . Total Hacks 28 | . . 1 . 2 24 . . . 1 . . . . Successful 26 | . . 1 . 1 24 . . . . . . . . Failed 2 | . . . . 1 . . . . 1 . . . . Catastrophic 1 | . . . . . . . . . 1 . . . . Database Lockouts . | . . . . . . . . . . . . . . Manual 3 | . . . . . 1 . . . 1 . . . 1 Terminals 3 | . . . . 2 . . . . 1 . . . . Fabricators . | . . . . . . . . . . . . . . Repair Stations . | . . . . . . . . . . . . . . Recycling Units . | . . . . . . . . . . . . . . Scanalyzers . | . . . . . . . . . . . . . . Garrison Access . | . . . . . . . . . . . . . . Terminal Hacks 26 | . . 1 . 1 24 . . . . . . . . Record 23 | . . . . . 23 . . . . . . . . Open Door 1 | . . 1 . . . . . . . . . . . Dispatch Records 1 | . . . . 1 . . . . . . . . . Proto ID Catalog 1 | . . . . . 1 . . . . . . . . Fabricator Hacks . | . . . . . . . . . . . . . . Repair Station Hacks . | . . . . . . . . . . . . . . Recycling Unit Hacks . | . . . . . . . . . . . . . . Scanalyzer . | . . . . . . . . . . . . . . Garrison Access Hacks . | . . . . . . . . . . . . . . Unauthorized Hacks . | . . . . . . . . . . . . . . Terminals . | . . . . . . . . . . . . . . Fabricators . | . . . . . . . . . . . . . . Repair Stations . | . . . . . . . . . . . . . . Recycling Units . | . . . . . . . . . . . . . . Scanalyzers . | . . . . . . . . . . . . . . Garrison Access . | . . . . . . . . . . . . . . Data Cores Recovered 1 | . . . 1 . . . . . . . . . . Used . | . . . . . . . . . . . . . . Hacking Detections 1 | . . . . . . . . . 1 . . . . Full Trace Events 1 | . . . . . . . . . 1 . . . . Feedback Events . | . . . . . . . . . . . . . . Feedback Blocked . | . . . . . . . . . . . . . . Robot Schematics Acquired . | . . . . . . . . . . . . . . Robots Built . | . . . . . . . . . . . . . . Authchips . | . . . . . . . . . . . . . . Time . | . . . . . . . . . . . . . . Total Robot Build Rating . | . . . . . . . . . . . . . . Part Schematics Acquired . | . . . . . . . . . . . . . . Parts Built . | . . . . . . . . . . . . . . Authchips . | . . . . . . . . . . . . . . Time . | . . . . . . . . . . . . . . Total Part Build Rating . | . . . . . . . . . . . . . . Part Studies Acquired . | . . . . . . . . . . . . . . Parts Repaired . | . . . . . . . . . . . . . . Time . | . . . . . . . . . . . . . . Parts Recycled . | . . . . . . . . . . . . . . Recycled Matter . | . . . . . . . . . . . . . . Retrieved Matter . | . . . . . . . . . . . . . . Retrieved Components . | . . . . . . . . . . . . . . Parts Scanalyzed . | . . . . . . . . . . . . . . Part Schematics Acquired . | . . . . . . . . . . . . . . Parts Damaged . | . . . . . . . . . . . . . . Bothacking | -11 -10 -10 -9 -9 -9 -8 -8 -8 -7 -7 -7 -7 -6 ------------ Run | Yrd Mat Min Mat Min Exi Min Mat Sto Fac Low Low Dat Pro Used RIF Installer . | . . . . . . . . . . . . . . Robots Hacked . | . . . . . . . . . . . . . . Non-combat . | . . . . . . . . . . . . . . Combat . | . . . . . . . . . . . . . . Robot Hacks Applied . | . . . . . . . . . . . . . . Relay Couplers Released . | . . . . . . . . . . . . . . Fabnet Peak Effective % . | . . . . . . . . . . . . . . Robots Rewired . | . . . . . . . . . . . . . . Allies Hacked . | . . . . . . . . . . . . . . Hacks Repelled . | . . . . . . . . . . . . . . Allies | -11 -10 -10 -9 -9 -9 -8 -8 -8 -7 -7 -7 -7 -6 -------- Run | Yrd Mat Min Mat Min Exi Min Mat Sto Fac Low Low Dat Pro Total Allies 2 | . . 1 . 1 . . . . . . . . . Largest Group 2 | . . 1 1 2 1 1 1 . . . . . . Highest-Rated Group 62 | . . 31 31 62 31 31 31 . . . . . . Highest-Rated Ally 31 | . . 31 31 31 31 31 31 . . . . . . Total Orders 2 | . . . . . 2 . . . . . . . . EXPLORE 1 | . . . . . 1 . . . . . . . . RETURN 1 | . . . . . 1 . . . . . . . . Ally Attacks 50 | . . 2 19 6 . 6 17 . . . . . . Total Damage 734 | . . 21 272 104 . 63 274 . . . . . . Kills 11 | . . . 5 3 . 1 2 . . . . . . Allies Corrupted . | . . . . . . . . . . . . . . Allies Melted . | . . . . . . . . . . . . . . Intel | -11 -10 -10 -9 -9 -9 -8 -8 -8 -7 -7 -7 -7 -6 ------- Run | Yrd Mat Min Mat Min Exi Min Mat Sto Fac Low Low Dat Pro Active Infowar (turns) 199 | . . . . . . . 1 . . . 22 72 104 Optics 197 | . . . . . . . . . . . 21 72 104 Sensors 1 | . . . . . . . 1 . . . . . . Cloaking 1 | . . . . . . . . . . . 1 . . Robot Analysis Total 154 | . . . . . . . . . . . . 154 . Derelict Logs Recovered 6 | . . 1 . 1 . . . . . 2 1 . 1 Drone Launches 1 | . . . . . 1 . . . . . . . . Drone Recoveries 1 | . . . . . 1 . . . . . . . . Exploration | -11 -10 -10 -9 -9 -9 -8 -8 -8 -7 -7 -7 -7 -6 ------------- Run | Yrd Mat Min Mat Min Exi Min Mat Sto Fac Low Low Dat Pro Turns Passed 8941 | 59 228 1201 817 886 638 793 536 983 1667 125 832 72 104 Spaces Moved 8911 | 45 141 674 412 512 347 430 156 396 2614 403 2534 92 155 Core 435 | 18 . . . 163 254 . . . . . . . . Treads 2234 | 27 141 674 412 349 93 430 108 . . . . . . Legs 811 | . . . . . . . 48 396 367 . . . . Wheels . | . . . . . . . . . . . . . . Hover . | . . . . . . . . . . . . . . Flight 5431 | . . . . . . . . . 2247 403 2534 92 155 Fastest Speed 27 | 50 160 160 160 150 150 170 120 120 27 30 30 28 37 Average Speed 78 | 116 160 160 160 156 162 170 154 120 43 30 31 31 38 Slowest Speed 455 | 160 160 160 160 160 200 170 170 120 455 30 34 37 120 Overloaded Moves 37 | . . . . . . . . . 8 . . 29 . Propulsion Burnouts . | . . . . . . . . . . . . . . Robots Hopped 35 | . . . . . . . . . 18 1 10 4 2 Potential Cave-ins . | . . . . . . . . . . . . . . Cave-ins Triggered . | . . . . . . . . . . . . . . Exploration Rate (%) 59 | 4 37 95 50 90 91 84 16 54 75 64 62 81 24 Regions Visited 13 Branch Regions 9 Pre-discovered Areas 30 | . . . . 1 1 . . . . 1 . 27 . Known Exits Taken 1 | . . . . . . 1 . . . . . . . Unknown Exits Taken 12 | 1 1 1 1 1 1 . 1 1 1 1 1 1 . Scrap Searched 13 | . . 1 . 1 . 2 . . . 5 3 . 1 Spaces Dug 4 | . . . . . . . . . . . 4 . . Terrain Destroyed 39 | . . . . . . . 1 2 32 . 4 . . Melee 4 | . . . . . . . . . . . 4 . . Projectile 3 | . . . . . . . 1 2 . . . . . AOE 32 | . . . . . . . . . 32 . . . . Terrain Rammed . | . . . . . . . . . . . . . . Walls Destroyed . | . . . . . . . . . . . . . . Machines Disabled . | . . . . . . . . . . . . . . Actions | -11 -10 -10 -9 -9 -9 -8 -8 -8 -7 -7 -7 -7 -6 --------- Run | Yrd Mat Min Mat Min Exi Min Mat Sto Fac Low Low Dat Pro Total 10224 | 52 143 741 515 556 419 461 331 696 3031 405 2555 129 190 Wait 841 | . . 15 63 15 68 3 100 175 325 4 11 38 24 Move 8830 | 44 140 673 411 511 346 429 155 395 2574 400 2516 85 151 Hop 29 | . . . . . . . . . 17 1 7 2 2 Pick Up 21 | 4 1 9 1 2 1 . . . . . 3 . . Fast Attach 71 | . . 1 7 3 2 4 10 12 24 . 7 . 1 Attach 14 | 4 1 2 . . 1 . 1 . . . 2 1 2 Detach 7 | . . . . . . . 1 1 . . 1 1 3 Swap 7 | . . 1 . . . . . 4 2 . . . . Drop 40 | . . 2 1 5 1 . 3 6 16 . 3 1 2 Fire 327 | . 1 38 32 20 . 19 61 82 72 . . . 2 Melee 13 | . . . . . . 6 . . 1 . 5 1 . Ram . | . . . . . . . . . . . . . . Kick 1 | . . . . . . . . 1 . . . . . Crush . | . . . . . . . . . . . . . . Escape Stasis . | . . . . . . . . . . . . . . Rewire . | . . . . . . . . . . . . . . Trap . | . . . . . . . . . . . . . . Miscellaneous 23 | . . . . . . . . 20 . . . . 3 Route ------- -11/Scrapyard -10/Materials (discovered 2 exits: [*Mat] / *Min) -10/Mines -9/Materials (discovered 3 exits: *Mat x2 / *Min) -9/Mines (discovered 3 exits: *Mat x2 / *Exi) -9/Exiles (discovered 2 exits: [*Min x2]) -8/Mines -8/Materials -8/Storage -7/Factory (discovered 5 exits: [*Fac x4] / [*Low]) -7/Lower Caves -7/Lower Caves -7/Data Miner -6/Proximity Caves History --------- Turn | Location | Event 11 | -11/Scrapyard | Discovered new exit (range 16) 60 | -11/Scrapyard | Entered Materials 141 | -10/Materials | Discovered new exit (range 7) 252 | -10/Materials | Discovered new exit (range 14) 288 | -10/Materials | Entered Mines 306 | -10/Mines | Build established: Mutant 438 | -10/Mines | Found a damaged Exp. Sensor Array with a note attached 445 | -10/Mines | Found Prototype Device 480 | -10/Mines | Met a Derelict who couldn't figure out how to use a Trap Extractor 1106 | -10/Mines | Learned 4 Materials zone layouts 1114 | -10/Mines | Found a hidden stash of uninstalled traps 1244 | -10/Mines | Met a Derelict testing a Signal Generator 1476 | -10/Mines | Discovered new exit (range 9) 1489 | -10/Mines | Entered Materials 1489 | -9/Materials | Accompanied by 1 ally 1489 | -9/Materials | Evolved 2 slots: Utility x1, Weapon x1 1490 | -9/Materials | Identified exit to Materials 2077 | -9/Materials | Discovered exit to Materials (range 5) 2285 | -9/Materials | Discovered new exit (range 6) 2306 | -9/Materials | Entered Mines 2306 | -9/Mines | Accompanied by 1 ally 2309 | -9/Mines | Received a Mining Laser from a helpful Derelict 2459 | -9/Mines | Discovered exit to Materials (range 8) 2567 | -9/Mines | Found a Scrap Suit stashed away for nefarious purposes 2571 | -9/Mines | Found Scrap Suit 2689 | -9/Mines | Build established: Scavenger-Mutant 2852 | -9/Mines | A weapon hastily lodged in a ceiling crevice suddenly fell to the ground 3015 | -9/Mines | Build established: Mutant 3056 | -9/Mines | Discovered exit to Materials (range 6) 3179 | -9/Mines | Deemed a non-threat by the Exiles lab entrance 3179 | -9/Mines | Discovered new exit (range 5) 3192 | -9/Mines | Entered Exiles 3192 | -9/Exiles | Accompanied by 1 ally 3252 | -9/Exiles | Met 8R-AWN 3275 | -9/Exiles | Met EX-HEX 3326 | -9/Exiles | Met EX-BIN 3344 | -9/Exiles | Aligned with FarCom system 3345 | -9/Exiles | Given EX-Vault access code 3380 | -9/Exiles | Opened EX-Vault 3420 | -9/Exiles | Warned to stay clear of 0b10 Research branches 3509 | -9/Exiles | Found Supersonic Drone Bay 3514 | -9/Exiles | Discovered new exit (range 56) 3521 | -9/Exiles | Discovered new exit (range 70) 3670 | -9/Exiles | Found Trap Reconfigurator 3762 | -9/Exiles | Learned location of Zion (-6) 3830 | -9/Exiles | Stole two prototypes: Trap Reconfigurator, Supersonic Drone Bay 3830 | -9/Exiles | Entered Mines 3830 | -8/Mines | Accompanied by 1 ally 4610 | -8/Mines | Discovered exit to Materials (range 7) 4623 | -8/Mines | Entered Materials 4623 | -8/Materials | Accompanied by 1 ally 4623 | -8/Materials | Evolved 2 slots: Utility x2 4891 | -8/Materials | Discovered new exit (range 9) 4964 | -8/Materials | Identified Exp. Sensor Array 5159 | -8/Materials | Entered Storage 5161 | -8/Storage | FarCom data flow suspended 5675 | -8/Storage | Lost 4 parts (1p1n1u1w) 5975 | -8/Storage | Build established: Scavenger-Gunner 6002 | -8/Storage | Core integrity fell below 50% 6017 | -8/Storage | Discovered new exit (range 12) 6020 | -8/Storage | Garrison activated, responded to threat 6142 | -8/Storage | Entered Factory 6142 | -7/Factory | Evolved 2 slots: Propulsion x1, Utility x1 6213 | -7/Factory | Allied Derelicts emerged from ambush trap array 6554 | -7/Factory | P-60 Hacker assimilated allied US-6RH(g) 6608 | -7/Factory | Discovered new exit (range 16) 6904 | -7/Factory | Lost 3 parts (1n2u) 6974 | -7/Factory | Discovered new exit (range 16) 7174 | -7/Factory | Build established: Scavenger-Sprinter 7208 | -7/Factory | Core integrity fell below 50% 7336 | -7/Factory | Discovered new exit (range 10) 7444 | -7/Factory | Discovered new exit (range 14) 7742 | -7/Factory | First assault squad dispatched 7806 | -7/Factory | Discovered new exit (range 7) 7809 | -7/Factory | Entered Lower Caves 7857 | -7/Lower Caves | Learned Factory machine intel 7902 | -7/Lower Caves | Build established: Sprinter 7932 | -7/Lower Caves | Discovered new exit (range 7) 7934 | -7/Lower Caves | Attracted the attention of an 0b10 checkpoint 7934 | -7/Lower Caves | Entered another Lower Caves area 8069 | -7/Lower Caves | Discovered new exit (range 11) 8072 | -7/Lower Caves | Encountered a Master Thief 8072 | -7/Lower Caves | Encountered a Master Thief 8072 | -7/Lower Caves | Encountered a Master Thief 8072 | -7/Lower Caves | Encountered a Master Thief 8101 | -7/Lower Caves | Learned location of 1 exit from Factory 8110 | -7/Lower Caves | Encountered a Master Thief 8111 | -7/Lower Caves | Trap Reconfigurator stolen by Master Thief 8112 | -7/Lower Caves | Gauss Rifle stolen by Master Thief 8536 | -7/Lower Caves | Attracted the attention of an 0b10 outpost 8750 | -7/Lower Caves | Core integrity fell below 20% 8766 | -7/Lower Caves | Entered Data Miner 8766 | -7/Data Miner | Discovered new exit (range 6) 8771 | -7/Data Miner | Met Data Miner 8775 | -7/Data Miner | Lost 3 parts (1p1n1u) 8782 | -7/Data Miner | Interfaced with the Data Conduit 8838 | -7/Data Miner | Entered Proximity Caves 8843 | -6/Proximity Caves | Learned Factory terminal intel 8872 | -6/Proximity Caves | Acquired the password to a Derelict Tinkerer's latest research 8875 | -6/Proximity Caves | Found Prototype Special Weapon 8875 | -6/Proximity Caves | Identified Molecular Deconstructor 8942 | -6/Proximity Caves | Destroyed by H-66 Slayer with Gauss Rifle Last Messages --------------- Found Imp. Deuterium Engine. Found ECM Suite. Found 41 Matter. Acquired 41 matter. PUBLIC SERVICE ANNOUNCEMENT: Unaware incursion detected. Likely classification: Search and Destroy. And maybe Retrieve. Something like that, yeah. Entropy package works its way towards G-50 Soldier core. Slug penetrates H-66 Slayer. Penetrated by Slug. G-50 Soldier core entropy levels peaking. Penetrated by Slug. Slug penetrates Wall. Nuclear Pulse Thruster destroyed. Penetrated by Slug. Dropped Plasma Cutter. Dropped Master Tearclaws. Slug penetrates Wall. Map ----- +----------------------------------------------------+ | ?????????????????????????????????????????????????? | | ?????????????????????????????????????????????????? | | ?????????????????????????????????????????????????? | | ?????????????????????????????????????????????????? | | ?????????????????????????????????????????????????? | | ?????????????????????????????????????????????????? | | ?????????????????????????????????????????????????? | | ?????????????????????????????????????????????????? | | ????????????????????????????????##???????????????? | | ???????????????????????????????? #???##??????????? | | ??????????????????????????????? #??# ??????????? | | ???????#?????#?##?????????????? #?# ???????????? | | ???????? ???? ## ?????????????# ## ????????????? | | ????????? ???? ????????????# ?????????????? | | ?????????? ?? ???????????# ??????????????? | | ??????????? ? ??????????? ???????????????? | | ????????????# ? ??????????# ????????????????? | | ?????????????# ????????? ?????????????????? | | ??????????????# ????????? ??????????????????? | | ???????????????# ####????? #??????????????????? | | ?????????#????## ## ##??? #??????????????????? | | ??####???# ## #??? #####??????????????? | | ??? ##???# #### #??????????????? | | ??? ##???????# ## #??????????????????? | | ???# ##??????# ## / #???????????????????? | | ??## #??????# ## @ ##???????????????????? | | ??# ????????# #####????????????????????? | | ??# #????????# #????????????????????????? | | ??# #???????## #????????????????????????? | | ??# #???#####gh ##???????????????????????? | | ??# #???# #???????????????????????? | | ??# ##??# #??????????????????????? | | ### #### #### ??????????????? | | #?# # ?????????????? | | ##? ####### #?????????????? | | ## ##?# ##??????? ###?????????????? | | ?# ##?? ##????????? #???????????????? | | ?# #?? #??????????? #??????????????? | | ?# #?# #???????????? ??????????????? | | ?# ### ##????????????? ?????????????? | | ?# ### ### ####???????????????#?????????????? | | ?# #?## ### ####?????????????????????????????? | | ?# #??# #?????????????????????????????? | | ?# #?# #?????????????????????????????? | | ?# ###### #?????????????????????????????? | | ?# ####?????? #?????????????????????????????? | | ####??????????? ????????????????????????????? | | #???????????????? ???????????????????????????? | | #####?????????????????#??????????????????????????? | | ?????????????????????????????????????????????????? | +----------------------------------------------------+ Best States ------------- Heat Dissipation 64 Energy Generation 18 Energy Capacity 280 Matter Stores 300 Matter Capacity 300 Sight Range 22 Terrain Scan Density 10 Armor Coverage 300 Resistance: TH 10 Evasion (%) 64 Targeting Accuracy 16 Target Analysis 5 Core Analysis 6 Recoil Reduction 2 Item Schematics ----------------- None Robot Schematics ------------------ None Fabricated ------------ Nothing Repaired ---------- Nothing Studied --------- None Alien Tech Used ----------------- None Achievements -------------- None Challenges ------------ None Game ------ Seed SurgeRecyclingField Manual? 0 Play Time 01:07:16 Cumulative 354.0 hours Start 2026.06.26 @ 16:37:00 End 2026.06.26 @ 17:44:48 Sessions 1 Manual Loads 0 Difficulty Rogue Special Mode None Game No. 877 Rogue 875 Adventurer 2 Explorer 0 Win Type - Total 1 Types 1/0/0/0/0/0/0/0/0/0 Lore% 50 Gallery% 67 Achievement% 53 Wizard Run 0 Options --------- Layout 2 ASCII 0 Keyboard 0 Movement Mouse Keybinds 0 Fullscreen 1 Font 24/Smallcaps Map View 50x44 Zoom Use 0% Tactical HUD 0 Map Filters NONE Filters NONE Steam 1 RUN: 7fa96896-e40c-44d2-b511-bf35bbe3462f